fUST/lending_fUST_20260601
["ID","MTS","AMOUNT","RATE_DAILY","PERIOD"]
[423663274,1780288241000,-500.0,0.00025047,2]
[423663275,1780288241000,-500.0,0.00025047,2]
[423663267,1780288241000,-492.0,0.00024787,10]
[423663270,1780288241000,-500.0,0.00025047,2]
[423663269,1780288241000,-627.97563358,0.00025047,2]
[423663276,1780288241000,-500.61879089,0.00025047,2]
[423663273,1780288241000,-500.0,0.00025047,2]
[423663271,1780288241000,-500.0,0.00025047,2]
[423663272,1780288241000,-500.0,0.00025047,2]
[423663277,1780288241000,-500.0,0.00025047,2]
[423663278,1780288241000,-500.43350853,0.00025047,2]
[423663279,1780288241000,-500.0,0.00025047,2]
[423663216,1780288241000,-661.32,0.00019199,2]
[423663268,1780288241000,-1345.16247068,0.00024947,2]
[423663252,1780288241000,-590.81,0.00021433,2]
[423663263,1780288241000,-1000.0,0.00022534,10]
[423663250,1780288241000,-661.42,0.00021391,2]
[423663219,1780288241000,-3128.5,0.00019473,2]
[423663240,1780288241000,-3128.5,0.00020843,2]
[423663226,1780288241000,-590.81,0.00019789,2]
[423663220,1780288241000,-661.32,0.00019473,2]
[423663223,1780288241000,-3128.5,0.00019747,2]
[423663218,1780288241000,-590.81,0.00019241,2]
[423663221,1780288241000,-538.03,0.00019515,2]
[423663224,1780288241000,-661.32,0.00019747,2]
[423663222,1780288241000,-590.81,0.00019515,2]
[423663235,1780288241000,-1000.0,0.00020485,2]
[423663238,1780288241000,-538.03,0.00020611,2]
[423663236,1780288241000,-3128.5,0.00020569,2]
[423663234,1780288241000,-590.81,0.00020337,2]
[423663237,1780288241000,-661.32,0.00020569,2]
[423663228,1780288241000,-661.32,0.00020021,2]
[423663227,1780288241000,-3128.5,0.00020021,2]
[423663245,1780288241000,-661.32,0.00021117,2]
[423663246,1780288241000,-538.03,0.00021159,2]
[423663229,1780288241000,-538.03,0.00020063,2]
[423663244,1780288241000,-3128.5,0.00021117,2]
[423663249,1780288241000,-3128.63,0.00021391,2]
[423663251,1780288241000,-538.03,0.00021433,2]
[423663243,1780288241000,-590.81,0.00020885,2]
[423663242,1780288241000,-538.03,0.00020885,2]
[423663239,1780288241000,-590.81,0.00020611,2]
[423663232,1780288241000,-661.32,0.00020295,2]
[423663231,1780288241000,-3128.5,0.00020295,2]
[423663230,1780288241000,-590.81,0.00020063,2]
[423663233,1780288241000,-538.03,0.00020337,2]
[423663241,1780288241000,-661.32,0.00020843,2]
[423663319,1780288242000,-500.0,0.00025047,2]
[423663322,1780288242000,-1276.4577,0.00025047,2]
[423663321,1780288242000,-500.0,0.00025047,2]
[423663326,1780288242000,-500.0,0.00025047,2]
[423663317,1780288242000,-500.0,0.00025047,2]
[423663320,1780288242000,-500.0,0.00025047,2]
[423663307,1780288242000,-500.0,0.00025047,2]
[423663329,1780288242000,-500.0,0.00025048,2]
[423663318,1780288242000,-524.86,0.00025047,2]
[423663310,1780288242000,-501.37457544,0.00025047,2]
[423663313,1780288242000,-500.0,0.00025047,2]
[423663324,1780288242000,-500.0,0.00025047,2]
[423663328,1780288242000,-360.73130621,0.00025048,2]
[423663325,1780288242000,-500.0,0.00025047,2]
[423663334,1780288242000,-500.0,0.00025048,2]
[423663323,1780288242000,-500.0,0.00025047,2]
[423663331,1780288242000,-500.81136002,0.00025048,2]
[423663341,1780288242000,-502.03818353,0.00025048,2]
[423663330,1780288242000,-501.88293787,0.00025048,2]
[423663332,1780288242000,-500.0,0.00025048,2]
[423663343,1780288242000,-504.99600671,0.00025048,2]
[423663342,1780288242000,-631.31277479,0.00025048,2]
[423663333,1780288242000,-501.46516318,0.00025048,2]
[423663336,1780288242000,-500.0,0.00025048,2]
[423663338,1780288242000,-502.96030742,0.00025048,2]
[423663340,1780288242000,-500.0,0.00025048,2]
[423663339,1780288242000,-500.0,0.00025048,2]
[423663335,1780288242000,-501.16307488,0.00025048,2]
[423663312,1780288242000,-500.0,0.00025047,2]
[423663327,1780288242000,-500.0,0.00025048,2]
[423663309,1780288242000,-500.72820552,0.00025047,2]
[423663288,1780288242000,-501.25174835,0.00025047,2]
[423663308,1780288242000,-501.0314836,0.00025047,2]
[423663337,1780288242000,-501.03485238,0.00025048,2]
[423663289,1780288242000,-425.45309444,0.00025047,2]
[423663287,1780288242000,-314.51250578,0.00025047,2]
[423663281,1780288242000,-500.0,0.00025047,2]
[423663282,1780288242000,-501.39759113,0.00025047,2]
[423663284,1780288242000,-500.0,0.00025047,2]
[423663285,1780288242000,-500.0,0.00025047,2]
[423663283,1780288242000,-500.0,0.00025047,2]
[423663286,1780288242000,-500.0,0.00025047,2]
[423663291,1780288242000,-500.0,0.00025047,2]
[423663302,1780288242000,-501.83170422,0.00025047,2]
[423663301,1780288242000,-501.65367755,0.00025047,2]
[423663292,1780288242000,-539.72829893,0.00025047,2]
[423663293,1780288242000,-500.0,0.00025047,2]
[423663290,1780288242000,-500.0,0.00025047,2]
[423663295,1780288242000,-341.76563281,0.00025047,2]
[423663299,1780288242000,-501.04173609,0.00025047,2]
[423663296,1780288242000,-622.79928043,0.00025047,2]
[423663294,1780288242000,-500.0,0.00025047,2]
[423663297,1780288242000,-500.0,0.00025047,2]
[423663300,1780288242000,-500.0,0.00025047,2]
[423663298,1780288242000,-521.75669352,0.00025047,2]
[423663304,1780288242000,-501.82828563,0.00025047,2]
[423663305,1780288242000,-501.35580205,0.00025047,2]
[423663315,1780288242000,-500.0,0.00025047,2]
[423663303,1780288242000,-503.28512668,0.00025047,2]
[423663316,1780288242000,-181.1130719,0.00025047,2]
[423663306,1780288242000,-500.0,0.00025047,2]
[423663314,1780288242000,-500.0,0.00025047,2]
[423663311,1780288242000,-501.05769942,0.00025047,2]
[423663345,1780288242000,-220.84118691,0.00025048,2]
[423663354,1780288242000,-500.0,0.00025048,2]
[423663355,1780288242000,-500.40506274,0.00025048,2]
[423663378,1780288242000,-500.0,0.00025048,2]
[423663382,1780288242000,-500.0,0.00025048,2]
[423663385,1780288242000,-500.0,0.00025048,2]
[423663384,1780288242000,-500.0,0.00025048,2]
[423663386,1780288242000,-501.25062731,0.00025048,2]
[423663388,1780288242000,-500.0,0.00025048,2]
[423663383,1780288242000,-504.70525504,0.00025048,2]
[423663387,1780288242000,-500.0,0.00025048,2]
[423663391,1780288242000,-500.0,0.00025048,2]
[423663389,1780288242000,-500.0,0.00025048,2]
[423663390,1780288242000,-500.0,0.00025048,2]
[423663393,1780288242000,-500.0,0.00025048,2]
[423663392,1780288242000,-500.0,0.00025048,2]
[423663394,1780288242000,-500.0,0.00025048,2]
[423663396,1780288242000,-500.0,0.00025048,2]
[423663395,1780288242000,-500.0,0.00025048,2]
[423663406,1780288242000,-500.0,0.00025048,2]
[423663407,1780288242000,-500.0,0.00025048,2]
[423663401,1780288242000,-500.0,0.00025048,2]
[423663400,1780288242000,-542.04914718,0.00025048,2]
[423663397,1780288242000,-500.0,0.00025048,2]
[423663399,1780288242000,-500.0,0.00025048,2]
[423663404,1780288242000,-500.0,0.00025048,2]
[423663403,1780288242000,-500.0,0.00025048,2]
[423663405,1780288242000,-275.36851952,0.00025048,2]
[423663402,1780288242000,-500.0,0.00025048,2]
[423663409,1780288242000,-500.0,0.00025048,2]
[423663408,1780288242000,-500.0,0.00025048,2]
[423663344,1780288242000,-500.0,0.00025048,2]
[423663379,1780288242000,-267.24203126,0.00025048,2]
[423663376,1780288242000,-500.0,0.00025048,2]
[423663398,1780288242000,-500.0,0.00025048,2]
[423663377,1780288242000,-503.18883211,0.00025048,2]
[423663374,1780288242000,-500.0,0.00025048,2]
[423663357,1780288242000,-501.33597198,0.00025048,2]
[423663346,1780288242000,-501.02823681,0.00025048,2]
[423663347,1780288242000,-491.12289209,0.00025048,2]
[423663356,1780288242000,-501.78261285,0.00025048,2]
[423663348,1780288242000,-500.72512557,0.00025048,2]
[423663351,1780288242000,-502.35110131,0.00025048,2]
[423663353,1780288242000,-500.0,0.00025048,2]
[423663411,1780288242000,-500.0,0.00025048,2]
[423663350,1780288242000,-500.7579157,0.00025048,2]
[423663352,1780288242000,-500.73002022,0.00025048,2]
[423663359,1780288242000,-500.0,0.00025048,2]
[423663358,1780288242000,-500.0,0.00025048,2]
[423663360,1780288242000,-548.29676272,0.00025048,2]
[423663361,1780288242000,-152.46540606,0.00025048,2]
[423663349,1780288242000,-500.0,0.00025048,2]
[423663364,1780288242000,-500.0,0.00025048,2]
[423663362,1780288242000,-500.0,0.00025048,2]
[423663375,1780288242000,-500.0,0.00025048,2]
[423663372,1780288242000,-234.51889064,0.00025048,2]
[423663373,1780288242000,-500.0,0.00025048,2]
[423663371,1780288242000,-500.0,0.00025048,2]
[423663370,1780288242000,-249.09998126,0.00025048,2]
[423663380,1780288242000,-330.2393099,0.00025048,2]
[423663381,1780288242000,-500.0,0.00025048,2]
[423663369,1780288242000,-504.83721007,0.00025048,2]
[423663366,1780288242000,-500.87886045,0.00025048,2]
[423663365,1780288242000,-338.27197255,0.00025048,2]
[423663368,1780288242000,-327.41316345,0.00025048,2]
[423663363,1780288242000,-494.72097139,0.00025048,2]
[423663367,1780288242000,-506.54330832,0.00025048,2]
[423663455,1780288243000,-500.0,0.00025049,2]
[423663449,1780288243000,-500.0,0.00025048,2]
[423663456,1780288243000,-342.01162423,0.00025049,2]
[423663453,1780288243000,-500.0,0.00025049,2]
[423663447,1780288243000,-234.9709101,0.00025048,2]
[423663450,1780288243000,-500.0,0.00025048,2]
[423663452,1780288243000,-500.64461641,0.00025049,2]
[423663454,1780288243000,-500.0,0.00025049,2]
[423663448,1780288243000,-186.14130619,0.00025048,2]
[423663451,1780288243000,-500.0,0.00025048,2]
[423663458,1780288243000,-500.6296141,0.00025049,2]
[423663462,1780288243000,-500.0,0.00025049,2]
[423663466,1780288243000,-500.0,0.00025049,2]
[423663457,1780288243000,-500.35829912,0.00025049,2]
[423663461,1780288243000,-500.75489992,0.00025049,2]
[423663459,1780288243000,-500.0,0.00025049,2]
[423663463,1780288243000,-500.0,0.00025049,2]
[423663460,1780288243000,-362.17548523,0.00025049,2]
[423663465,1780288243000,-500.0,0.00025049,2]
[423663464,1780288243000,-500.0,0.00025049,2]
[423663445,1780288243000,-500.0,0.00025048,2]
[423663468,1780288243000,-254.316758,0.00025049,2]
[423663467,1780288243000,-254.316758,0.00025049,2]
[423663442,1780288243000,-500.0,0.00025048,2]
[423663423,1780288243000,-500.0,0.00025048,2]
[423663439,1780288243000,-500.0,0.00025048,2]
[423663472,1780288243000,-500.0,0.00025051,2]
[423663415,1780288243000,-500.0,0.00025048,2]
[423663414,1780288243000,-500.0,0.00025048,2]
[423663417,1780288243000,-500.0,0.00025048,2]
[423663416,1780288243000,-500.0,0.00025048,2]
[423663421,1780288243000,-500.0,0.00025048,2]
[423663422,1780288243000,-500.0,0.00025048,2]
[423663420,1780288243000,-246.30289034,0.00025048,2]
[423663418,1780288243000,-500.0,0.00025048,2]
[423663419,1780288243000,-500.0,0.00025048,2]
[423663427,1780288243000,-500.0,0.00025048,2]
[423663426,1780288243000,-500.0,0.00025048,2]
[423663424,1780288243000,-500.0,0.00025048,2]
[423663425,1780288243000,-500.0,0.00025048,2]
[423663428,1780288243000,-500.0,0.00025048,2]
[423663429,1780288243000,-500.0,0.00025048,2]
[423663430,1780288243000,-500.0,0.00025048,2]
[423663433,1780288243000,-500.0,0.00025048,2]
[423663435,1780288243000,-500.0,0.00025048,2]
[423663438,1780288243000,-500.0,0.00025048,2]
[423663434,1780288243000,-500.0,0.00025048,2]
[423663437,1780288243000,-500.0,0.00025048,2]
[423663441,1780288243000,-500.0,0.00025048,2]
[423663440,1780288243000,-500.0,0.00025048,2]
[423663477,1780288243000,-500.0,0.00025051,2]
[423663475,1780288243000,-500.76688565,0.00025051,2]
[423663471,1780288243000,-500.0,0.00025051,2]
[423663506,1780288243000,-500.0,0.00025321,2]
[423663505,1780288243000,-500.0,0.00025321,2]
[423663507,1780288243000,-500.0,0.00025321,2]
[423663501,1780288243000,-500.0,0.00025321,2]
[423663500,1780288243000,-500.0,0.00025321,2]
[423663499,1780288243000,-500.0,0.00025321,2]
[423663503,1780288243000,-500.0,0.00025321,2]
[423663502,1780288243000,-500.0,0.00025321,2]
[423663509,1780288243000,-244.54586962,0.00025321,2]
[423663519,1780288243000,-524.86,0.00025321,2]
[423663508,1780288243000,-183.00766591,0.00025321,2]
[423663521,1780288243000,-500.0,0.00025321,2]
[423663520,1780288243000,-500.0,0.00025321,2]
[423663518,1780288243000,-500.0,0.00025321,2]
[423663511,1780288243000,-500.0,0.00025321,2]
[423663514,1780288243000,-500.0,0.00025321,2]
[423663512,1780288243000,-500.0,0.00025321,2]
[423663515,1780288243000,-500.0,0.00025321,2]
[423663513,1780288243000,-500.58298145,0.00025321,2]
[423663516,1780288243000,-500.0,0.00025321,2]
[423663517,1780288243000,-501.03458527,0.00025321,2]
[423663522,1780288243000,-500.0,0.00025321,2]
[423663523,1780288243000,-1276.4577,0.00025321,2]
[423663496,1780288243000,-500.0,0.00025321,2]
[423663504,1780288243000,-500.0,0.00025321,2]
[423663510,1780288243000,-500.0,0.00025321,2]
[423663497,1780288243000,-500.0,0.00025321,2]
[423663473,1780288243000,-500.0,0.00025051,2]
[423663498,1780288243000,-499.53805496,0.00025321,2]
[423663469,1780288243000,-254.316758,0.00025049,2]
[423663476,1780288243000,-500.0,0.00025051,2]
[423663474,1780288243000,-503.74680422,0.00025051,2]
[423663478,1780288243000,-500.0,0.00025051,2]
[423663479,1780288243000,-500.0,0.00025051,2]
[423663480,1780288243000,-500.0,0.00025051,2]
[423663481,1780288243000,-500.0,0.00025051,2]
[423663494,1780288243000,-500.0,0.00025051,2]
[423663483,1780288243000,-500.0,0.00025051,2]
[423663470,1780288243000,-254.316758,0.00025049,2]
[423663486,1780288243000,-500.0,0.00025051,2]
[423663489,1780288243000,-500.0,0.00025051,2]
[423663482,1780288243000,-500.0,0.00025051,2]
[423663484,1780288243000,-500.0,0.00025051,2]
[423663487,1780288243000,-613.27606725,0.00025051,2]
[423663488,1780288243000,-167.71960462,0.00025051,2]
[423663493,1780288243000,-500.0,0.00025051,2]
[423663490,1780288243000,-500.0,0.00025051,2]
[423663491,1780288243000,-500.0,0.00025051,2]
[423663492,1780288243000,-500.0,0.00025051,2]
[423663485,1780288243000,-517.6594564,0.00025051,2]
[423663495,1780288243000,-502.81715795,0.00025051,2]
[423663566,1780288244000,-500.0,0.00025322,2]
[423663568,1780288244000,-504.94302639,0.00025322,2]
[423663561,1780288244000,-500.0,0.00025322,2]
[423663564,1780288244000,-500.0,0.00025322,2]
[423663572,1780288244000,-500.0,0.00025322,2]
[423663556,1780288244000,-500.0,0.00025322,2]
[423663565,1780288244000,-500.0,0.00025322,2]
[423663563,1780288244000,-501.98972124,0.00025322,2]
[423663560,1780288244000,-500.0,0.00025322,2]
[423663555,1780288244000,-500.0,0.00025322,2]
[423663571,1780288244000,-500.0,0.00025322,2]
[423663551,1780288244000,-500.0,0.00025322,2]
[423663567,1780288244000,-500.0,0.00025322,2]
[423663562,1780288244000,-502.49436931,0.00025322,2]
[423663580,1780288244000,-500.0,0.00025322,2]
[423663569,1780288244000,-153.52472002,0.00025322,2]
[423663574,1780288244000,-254.316758,0.00025322,2]
[423663582,1780288244000,-500.0,0.00025322,2]
[423663583,1780288244000,-500.0,0.00025322,2]
[423663573,1780288244000,-254.316758,0.00025322,2]
[423663575,1780288244000,-254.316758,0.00025322,2]
[423663576,1780288244000,-254.316758,0.00025322,2]
[423663584,1780288244000,-500.0,0.00025322,2]
[423663579,1780288244000,-445.79535104,0.00025322,2]
[423663581,1780288244000,-500.79356014,0.00025322,2]
[423663577,1780288244000,-500.0,0.00025322,2]
[423663578,1780288244000,-500.0,0.00025322,2]
[423663585,1780288244000,-500.0,0.00025322,2]
[423663557,1780288244000,-500.0,0.00025322,2]
[423663570,1780288244000,-500.0,0.00025322,2]
[423663558,1780288244000,-532.0157853,0.00025322,2]
[423663533,1780288244000,-590.26240904,0.00025322,2]
[423663554,1780288244000,-548.23373266,0.00025322,2]
[423663524,1780288244000,-500.0,0.00025321,2]
[423663526,1780288244000,-500.0,0.00025321,2]
[423663525,1780288244000,-500.0,0.00025321,2]
[423663528,1780288244000,-500.0,0.00025322,2]
[423663527,1780288244000,-500.0,0.00025321,2]
[423663529,1780288244000,-552.89935702,0.00025322,2]
[423663587,1780288244000,-507.71452031,0.00025322,2]
[423663530,1780288244000,-500.0,0.00025322,2]
[423663531,1780288244000,-500.0,0.00025322,2]
[423663532,1780288244000,-613.55018426,0.00025322,2]
[423663534,1780288244000,-502.13254286,0.00025322,2]
[423663535,1780288244000,-500.0,0.00025322,2]
[423663538,1780288244000,-505.57351394,0.00025322,2]
[423663541,1780288244000,-500.0,0.00025322,2]
[423663542,1780288244000,-500.0,0.00025322,2]
[423663546,1780288244000,-500.0,0.00025322,2]
[423663539,1780288244000,-500.0,0.00025322,2]
[423663537,1780288244000,-206.68005739,0.00025322,2]
[423663548,1780288244000,-347.19104797,0.00025322,2]
[423663536,1780288244000,-460.85766078,0.00025322,2]
[423663544,1780288244000,-562.78597676,0.00025322,2]
[423663545,1780288244000,-500.0,0.00025322,2]
[423663543,1780288244000,-500.0,0.00025322,2]
[423663540,1780288244000,-500.0,0.00025322,2]
[423663547,1780288244000,-500.0,0.00025322,2]
[423663549,1780288244000,-500.0,0.00025322,2]
[423663550,1780288244000,-500.7217449,0.00025322,2]
[423663559,1780288244000,-504.28975278,0.00025322,2]
[423663553,1780288244000,-500.0,0.00025322,2]
[423663552,1780288244000,-500.0,0.00025322,2]
[423663598,1780288244000,-500.0,0.00025322,2]
[423663640,1780288244000,-500.0,0.00025595,2]
[423663588,1780288244000,-500.0,0.00025322,2]
[423663621,1780288244000,-500.0,0.00025325,2]
[423663624,1780288244000,-501.87952797,0.00025325,2]
[423663627,1780288244000,-500.0,0.00025325,2]
[423663625,1780288244000,-501.00780891,0.00025325,2]
[423663631,1780288244000,-500.0,0.00025325,2]
[423663626,1780288244000,-500.0,0.00025325,2]
[423663636,1780288244000,-500.0,0.00025595,2]
[423663632,1780288244000,-500.0,0.00025325,2]
[423663633,1780288244000,-502.78158214,0.00025325,2]
[423663630,1780288244000,-500.0,0.00025325,2]
[423663628,1780288244000,-500.0,0.00025325,2]
[423663629,1780288244000,-500.0,0.00025325,2]
[423663634,1780288244000,-500.0,0.00025325,2]
[423663635,1780288244000,-500.0,0.00025325,2]
[423663638,1780288244000,-500.0,0.00025595,2]
[423663650,1780288244000,-500.0,0.00025595,2]
[423663651,1780288244000,-500.0,0.00025595,2]
[423663639,1780288244000,-500.0,0.00025595,2]
[423663642,1780288244000,-500.0,0.00025595,2]
[423663645,1780288244000,-500.0,0.00025595,2]
[423663647,1780288244000,-500.0,0.00025595,2]
[423663644,1780288244000,-500.0,0.00025595,2]
[423663649,1780288244000,-500.0,0.00025595,2]
[423663641,1780288244000,-500.0,0.00025595,2]
[423663652,1780288244000,-500.0,0.00025595,2]
[423663643,1780288244000,-500.0,0.00025595,2]
[423663646,1780288244000,-500.0,0.00025595,2]
[423663648,1780288244000,-507.49225693,0.00025595,2]
[423663597,1780288244000,-500.0,0.00025322,2]
[423663623,1780288244000,-536.72050921,0.00025325,2]
[423663622,1780288244000,-502.28001941,0.00025325,2]
[423663637,1780288244000,-500.0,0.00025595,2]
[423663619,1780288244000,-252.63459088,0.00025325,2]
[423663618,1780288244000,-500.0,0.00025325,2]
[423663589,1780288244000,-500.0,0.00025322,2]
[423663592,1780288244000,-500.0,0.00025322,2]
[423663590,1780288244000,-500.0,0.00025322,2]
[423663594,1780288244000,-500.0,0.00025322,2]
[423663586,1780288244000,-500.0,0.00025322,2]
[423663593,1780288244000,-500.0,0.00025322,2]
[423663599,1780288244000,-500.0,0.00025322,2]
[423663591,1780288244000,-500.0,0.00025322,2]
[423663596,1780288244000,-500.0,0.00025322,2]
[423663600,1780288244000,-500.0,0.00025322,2]
[423663605,1780288244000,-500.0,0.00025322,2]
[423663603,1780288244000,-500.0,0.00025322,2]
[423663607,1780288244000,-500.0,0.00025322,2]
[423663604,1780288244000,-500.0,0.00025322,2]
[423663595,1780288244000,-500.0,0.00025322,2]
[423663615,1780288244000,-500.0,0.00025323,2]
[423663601,1780288244000,-500.0,0.00025322,2]
[423663602,1780288244000,-500.0,0.00025322,2]
[423663610,1780288244000,-500.0,0.00025323,2]
[423663606,1780288244000,-500.0,0.00025322,2]
[423663608,1780288244000,-500.62957667,0.00025323,2]
[423663609,1780288244000,-500.0,0.00025323,2]
[423663612,1780288244000,-500.83080511,0.00025323,2]
[423663611,1780288244000,-500.0,0.00025323,2]
[423663613,1780288244000,-500.0,0.00025323,2]
[423663614,1780288244000,-500.0,0.00025323,2]
[423663616,1780288244000,-501.85884426,0.00025323,2]
[423663620,1780288244000,-568.45532753,0.00025325,2]
[423663617,1780288244000,-505.58300387,0.00025325,2]
[423663695,1780288245000,-500.0,0.00025596,2]
[423663705,1780288245000,-501.62544405,0.00025596,2]
[423663691,1780288245000,-254.316758,0.00025596,2]
[423663706,1780288245000,-500.0,0.00025596,2]
[423663693,1780288245000,-254.316758,0.00025596,2]
[423663694,1780288245000,-314.82255049,0.00025596,2]
[423663685,1780288245000,-528.21745432,0.00025596,2]
[423663687,1780288245000,-500.0,0.00025596,2]
[423663688,1780288245000,-500.0,0.00025596,2]
[423663689,1780288245000,-500.0,0.00025596,2]
[423663692,1780288245000,-254.316758,0.00025596,2]
[423663686,1780288245000,-500.99712497,0.00025596,2]
[423663701,1780288245000,-500.0,0.00025596,2]
[423663704,1780288245000,-500.0,0.00025596,2]
[423663697,1780288245000,-500.0,0.00025596,2]
[423663710,1780288245000,-500.0,0.00025596,2]
[423663702,1780288245000,-500.0,0.00025596,2]
[423663699,1780288245000,-500.0,0.00025596,2]
[423663696,1780288245000,-502.47751975,0.00025596,2]
[423663698,1780288245000,-506.04284901,0.00025596,2]
[423663703,1780288245000,-634.70730422,0.00025596,2]
[423663707,1780288245000,-500.0,0.00025596,2]
[423663709,1780288245000,-500.0,0.00025596,2]
[423663718,1780288245000,-503.58185245,0.00025596,2]
[423663717,1780288245000,-505.63402047,0.00025596,2]
[423663708,1780288245000,-500.0,0.00025596,2]
[423663711,1780288245000,-503.34482228,0.00025596,2]
[423663714,1780288245000,-502.18613889,0.00025596,2]
[423663715,1780288245000,-502.27898752,0.00025596,2]
[423663700,1780288245000,-611.15248232,0.00025596,2]
[423663690,1780288245000,-254.316758,0.00025596,2]
[423663664,1780288245000,-500.0,0.00025596,2]
[423663684,1780288245000,-504.8971506,0.00025596,2]
[423663658,1780288245000,-1276.4577,0.00025595,2]
[423663655,1780288245000,-500.0,0.00025595,2]
[423663653,1780288245000,-500.0,0.00025595,2]
[423663656,1780288245000,-500.0,0.00025595,2]
[423663657,1780288245000,-500.0,0.00025595,2]
[423663654,1780288245000,-524.86,0.00025595,2]
[423663663,1780288245000,-500.0,0.00025596,2]
[423663661,1780288245000,-500.0,0.00025595,2]
[423663660,1780288245000,-500.0,0.00025595,2]
[423663662,1780288245000,-500.0,0.00025595,2]
[423663659,1780288245000,-500.0,0.00025595,2]
[423663666,1780288245000,-500.0,0.00025596,2]
[423663677,1780288245000,-503.94881642,0.00025596,2]
[423663678,1780288245000,-501.43926751,0.00025596,2]
[423663676,1780288245000,-506.25542565,0.00025596,2]
[423663667,1780288245000,-500.0,0.00025596,2]
[423663665,1780288245000,-500.0,0.00025596,2]
[423663671,1780288245000,-500.0,0.00025596,2]
[423663668,1780288245000,-500.0,0.00025596,2]
[423663670,1780288245000,-500.0,0.00025596,2]
[423663669,1780288245000,-500.0,0.00025596,2]
[423663674,1780288245000,-500.0,0.00025596,2]
[423663675,1780288245000,-500.0,0.00025596,2]
[423663672,1780288245000,-500.0,0.00025596,2]
[423663673,1780288245000,-500.0,0.00025596,2]
[423663679,1780288245000,-500.0,0.00025596,2]
[423663682,1780288245000,-287.6117342,0.00025596,2]
[423663680,1780288245000,-500.0,0.00025596,2]
[423663681,1780288245000,-503.14267413,0.00025596,2]
[423663683,1780288245000,-502.33028441,0.00025596,2]
[423663712,1780288245000,-561.32766286,0.00025596,2]
[423663713,1780288245000,-500.0,0.00025596,2]
[423663720,1780288245000,-303.52685698,0.00025596,2]
[423663758,1780288245000,-500.0,0.00025869,2]
[423663757,1780288245000,-500.0,0.00025869,2]
[423663755,1780288245000,-500.0,0.00025869,2]
[423663759,1780288245000,-524.86,0.00025869,2]
[423663761,1780288245000,-500.0,0.00025869,2]
[423663763,1780288245000,-1276.4577,0.00025869,2]
[423663765,1780288245000,-500.0,0.00025869,2]
[423663766,1780288245000,-500.0,0.00025869,2]
[423663769,1780288245000,-500.0,0.0002587,2]
[423663770,1780288245000,-500.0,0.0002587,2]
[423663768,1780288245000,-500.0,0.0002587,2]
[423663767,1780288245000,-500.0,0.00025869,2]
[423663777,1780288245000,-500.0,0.0002587,2]
[423663778,1780288245000,-313.56488925,0.0002587,2]
[423663772,1780288245000,-500.0,0.0002587,2]
[423663773,1780288245000,-500.0,0.0002587,2]
[423663776,1780288245000,-500.0,0.0002587,2]
[423663774,1780288245000,-500.0,0.0002587,2]
[423663771,1780288245000,-500.0,0.0002587,2]
[423663775,1780288245000,-500.0,0.0002587,2]
[423663781,1780288245000,-502.19977342,0.0002587,2]
[423663785,1780288245000,-507.56166194,0.0002587,2]
[423663782,1780288245000,-500.0,0.0002587,2]
[423663784,1780288245000,-500.0,0.0002587,2]